bitfinex/quotes_ETHUSD_20240719
["timestamp","ask_amount","ask_price","bid_price","bid_amount"]
[1721359593127,2.32235143,3419.9,3419.2,17.68075]
[1721359593460,2.32235143,3419.9,3419.3,5.92457]
[1721359593762,2.2779,3419.9,3419.3,5.92457]
[1721359593963,2.2779,3419.9,3419.3,2.92457]
[1721359595929,5.20196,3419.9,3419.2,14.7561]
[1721359596152,0.04443981,3419.8,3419.2,12.32]
[1721359597226,1.09143981,3419.8,3419.2,12.32]
[1721359597641,2.92425,3419.7,3419.2,12.32]
[1721359598050,0.04415871,3419.6,3419.2,12.32]
[1721359598255,0.04415871,3419.6,3419.0,2.92482]
[1721359598559,2.92425,3419.7,3419.0,2.92482]
[1721359598971,0.73857108,3419.8,3419.2,2.92465]
[1721359599182,0.04417779,3419.6,3419.3,2.92449]
[1721359599342,1.092391,3419.9,3419.4,2.92448]
[1721359599543,1.092391,3419.9,3419.5,0.05848621]
[1721359599852,0.04416996,3419.8,3419.7,2.92423]
[1721359601126,0.04416996,3419.8,3419.7,5.84846]
[1721359601331,1.092391,3419.9,3419.8,2.92414]
[1721359602843,1.092391,3419.9,3419.8,5.84828]
[1721359603043,1.092391,3419.9,3419.8,9.32278]
[1721359603681,1.092391,3419.9,3419.8,9.87278]
[1721359604587,1.092391,3419.9,3419.8,6.39828]
[1721359604883,1.092391,3419.9,3419.8,2.92414]
[1721359607688,1.13666627,3419.9,3419.7,2.9242]
[1721359609283,1.092391,3419.9,3419.7,2.9242]
[1721359609478,0.04435066,3419.8,3419.7,2.9242]
[1721359609983,0.04435066,3419.8,3419.7,5.9242]
[1721359610686,1.092391,3419.9,3419.8,2.92414]
[1721359611012,1.13674328,3419.9,3419.8,2.92414]
[1721359622998,1.13674328,3419.9,3419.7,3.0]
[1721359623387,1.13674328,3419.9,3419.7,5.92422]
[1721359626110,1.13674328,3419.9,3419.7,2.92422]
[1721359626311,1.13674328,3419.9,3419.5,2.9244]
[1721359627231,1.13674328,3419.9,3419.3,2.92455]
[1721359627232,2.2894,3419.8,3419.3,2.92455]
[1721359627632,0.04248726,3419.7,3419.3,2.92455]
[1721359627831,2.2894,3419.8,3419.3,2.92455]
[1721359628136,0.04248726,3419.7,3419.3,2.92455]
[1721359628494,2.2894,3419.8,3419.3,2.92455]
[1721359628689,0.04247563,3419.6,3419.3,2.92455]
[1721359628903,0.04248726,3419.7,3419.3,2.92455]
[1721359629105,0.04248726,3419.7,3418.8,2.92491]
[1721359629106,2.33186401,3419.5,3418.9,2.92485]
[1721359629305,2.33186401,3419.5,3419.0,2.9248]
[1721359629306,2.2894,3419.5,3419.0,2.9248]
[1721359629631,0.0423172,3419.4,3419.0,2.9248]
[1721359629993,0.0423172,3419.4,3419.0,3.9718]
[1721359630195,6.305871,3419.9,3419.3,2.92457]
[1721359630424,0.04232174,3419.8,3419.6,2.92425]
[1721359630912,0.04232174,3419.8,3419.6,3.97125]
[1721359631227,0.04232174,3419.8,3419.6,2.92425]
[1721359631734,0.04232174,3419.8,3419.5,2.9244]
[1721359633600,0.04232174,3419.8,3419.3,2.92452]
[1721359633906,2.2894,3419.7,3419.3,2.92452]
[1721359634292,2.2894,3419.7,3419.2,2.92464]
[1721359634293,0.04231659,3419.6,3419.2,2.92464]
[1721359634493,0.04231659,3419.6,3418.8,6.32259]
[1721359635030,0.04231659,3419.6,3418.9,3.0]
[1721359635227,0.04231659,3419.6,3419.0,2.92482]
[1721359636219,0.04231659,3419.6,3419.1,2.92474]
[1721359645122,0.78185135,3419.6,3419.1,2.92474]
[1721359645345,1.047,3419.5,3418.9,2.9249]
[1721359645657,0.04229302,3419.4,3418.9,2.9249]
[1721359646059,0.04229302,3419.4,3419.0,2.92483]
[1721359648018,0.04229302,3419.4,3419.1,2.92473]
[1721359648953,0.04228934,3419.3,3419.1,2.92473]
[1721359649351,1.0277221,3419.6,3419.1,2.92473]
[1721359649555,0.04227772,3419.2,3419.1,2.92473]
[1721359649727,1.0277221,3419.6,3419.1,2.92473]
[1721359649936,0.04227772,3419.2,3419.1,2.92473]
[1721359650342,1.0277221,3419.6,3419.1,2.92473]
[1721359650544,0.04224819,3419.2,3419.1,2.92473]
[1721359650746,3.9520421,3419.6,3418.9,2.92485]
[1721359650919,0.04224819,3419.2,3418.9,2.92485]
[1721359651117,2.06826121,3419.5,3418.9,2.92485]
[1721359651311,2.06826121,3419.5,3419.0,2.92483]
[1721359651312,0.04223656,3419.1,3419.0,2.92483]
[1721359651580,2.06826121,3419.5,3419.0,2.92483]
[1721359651715,0.04225365,3419.1,3419.0,2.92483]
[1721359651921,2.06826121,3419.5,3419.0,2.92483]
[1721359652236,0.04225365,3419.1,3419.0,2.92483]
[1721359652443,0.72819812,3419.4,3419.0,2.92483]
[1721359652981,0.04226896,3419.3,3419.0,2.92483]
[1721359657679,1.047,3419.5,3419.0,2.92483]
[1721359657856,0.04219665,3419.4,3419.0,2.92483]
[1721359660295,0.04219665,3419.4,3418.8,2.92493]
[1721359660790,2.4089,3419.3,3418.8,2.92493]
[1721359661090,0.04215351,3419.2,3418.8,2.92493]
[1721359661298,2.4089,3419.3,3418.8,2.92493]
[1721359661457,0.04215351,3419.2,3418.8,2.92493]
[1721359661654,2.3589,3419.3,3418.8,2.92493]
[1721359661880,0.04215749,3419.2,3418.8,2.92493]
[1721359662089,2.3589,3419.3,3418.8,2.92493]
[1721359662273,0.04215749,3419.2,3418.8,2.92493]
[1721359662597,2.3589,3419.3,3418.8,2.92493]
[1721359662778,0.04214586,3419.1,3418.8,2.92493]
[1721359662955,0.04216146,3419.2,3418.8,2.92493]
[1721359663151,0.0421382,3419.0,3418.8,2.92493]
[1721359663403,3.4059,3419.3,3418.8,2.92493]
[1721359663583,0.0420473,3418.9,3418.8,2.92493]
[1721359663798,1.047,3419.1,3418.6,2.92515]
[1721359663996,0.04201003,3418.9,3418.6,2.92515]
[1721359664210,0.04195643,3419.0,3418.6,2.92515]
[1721359664419,0.04193937,3418.8,3418.6,2.92515]
[1721359664570,1.047,3419.1,3418.6,2.92515]
[1721359665197,0.0418656,3419.0,3418.6,2.92515]
[1721359666708,1.047,3419.1,3418.6,2.92515]
[1721359666885,0.04185396,3418.9,3418.6,2.92515]
[1721359667078,1.047,3419.1,3418.6,2.92515]
[1721359667282,0.0418656,3419.0,3418.6,2.92515]
[1721359669010,2.92466,3419.2,3418.6,2.92515]
[1721359669515,0.04177948,3419.1,3418.6,2.92515]
[1721359670721,1.08877948,3419.1,3418.6,2.92515]
[1721359670915,0.04177948,3419.1,3418.6,1.047]
[1721359671081,0.04177948,3419.1,3418.8,2.92495]
[1721359671285,2.3589,3419.3,3418.8,2.92495]
[1721359671487,0.0417849,3419.2,3418.8,2.92495]
[1721359671729,2.3589,3419.3,3418.8,2.92495]
[1721359671945,0.04177327,3419.1,3418.8,2.92495]
[1721359672088,0.0417849,3419.2,3418.9,2.92489]
[1721359672289,2.3589,3419.3,3418.9,2.92489]
[1721359672531,0.0417849,3419.2,3418.9,2.92489]
[1721359673132,0.04177327,3419.1,3418.9,2.92489]
[1721359673311,0.04177327,3419.1,3419.0,2.92483]
[1721359673523,2.3457,3419.6,3419.1,2.92474]
[1721359674714,0.0418198,3419.5,3419.1,2.92474]
[1721359675731,0.0418198,3419.5,3419.4,2.92448]
[1721359676093,3.438091,3419.9,3419.4,2.92448]
[1721359676451,0.04193323,3419.5,3419.4,6.89596]
[1721359676790,1.092391,3419.9,3419.8,2.92414]
[1721359676945,1.092391,3419.9,3419.8,9.20258]
[1721359677558,1.092391,3419.9,3419.8,16.69350784]
[1721359677838,1.092391,3419.9,3419.8,21.75072942]
[1721359678041,0.48237705,3419.9,3419.8,21.14275634]
[1721359678599,0.48237705,3419.9,3419.8,18.21861634]
[1721359679200,0.48237705,3419.9,3419.8,11.70558]
[1721359679405,0.48237705,3419.9,3419.8,9.75258]
[1721359679648,0.48237705,3419.9,3419.8,12.75258]
[1721359680804,0.48237705,3419.9,3419.8,15.67672]
[1721359681846,0.48237705,3419.9,3419.8,16.69341382]
[1721359682032,0.48237705,3419.9,3419.8,18.21850301]
[1721359682412,0.48237705,3419.9,3419.8,16.69341382]
[1721359683468,0.48237705,3419.9,3419.8,15.67672]
[1721359689044,0.48237705,3419.9,3419.8,8.84828]
[1721359689378,0.48237705,3419.9,3419.8,9.89528]
[1721359690268,0.48237705,3419.9,3419.8,12.81942]
[1721359690565,0.48237705,3419.9,3419.8,9.89528]
[1721359690777,0.48237705,3419.9,3419.8,12.81942]
[1721359691079,0.48237705,3419.9,3419.8,10.44528]
[1721359691781,0.48237705,3419.9,3419.8,13.36942]
[1721359692369,0.48237705,3419.9,3419.8,18.60476]
[1721359692540,2.92254,3421.7,3419.8,18.60476]
[1721359692541,1.83274299,3422.5,3419.8,9.9892]
[1721359692745,0.3,3421.7,3421.5,2.92263]
[1721359692945,0.34147932,3421.7,3421.5,2.92263]
[1721359695209,0.04147932,3421.7,3421.6,2.9226]
[1721359695481,2.3899,3421.8,3421.6,2.9226]
[1721359695653,0.04146453,3421.7,3421.6,2.9226]
[1721359695854,2.3899,3421.8,3421.6,2.9226]
[1721359696040,0.04146292,3421.7,3421.6,2.9226]
[1721359696243,2.3899,3421.8,3421.4,2.92277]
[1721359696474,0.28066478,3421.7,3421.4,2.92277]
[1721359699257,0.28066478,3421.7,3421.2,2.92294]
[1721359701480,2.92269,3421.5,3420.6,2.92344]
[1721359701706,2.92326,3420.9,3420.2,2.9238]
[1721359701858,0.0416208,3420.8,3420.3,2.92369]
[1721359702062,0.0416208,3420.8,3420.0,2.92396]
[1721359702248,0.0416208,3420.8,3420.1,2.92389]
[1721359702448,0.53024208,3420.7,3420.1,2.92389]
[1721359702760,0.04165708,3420.6,3420.1,2.92389]
[1721359704988,0.04165708,3420.6,3419.8,2.92414]
[1721359705166,0.04165708,3420.6,3419.9,2.924]
[1721359705700,0.04165708,3420.6,3420.0,2.92396]
[1721359705995,0.917266,3420.6,3420.0,2.92396]
[1721359706210,3.840746,3420.6,3420.0,2.92396]
[1721359707364,3.840746,3420.6,3419.9,2.92406]
[1721359707365,0.917266,3420.6,3419.9,2.92406]
[1721359707663,3.840726,3420.6,3419.9,2.92406]
[1721359707871,0.6764016,3420.5,3419.9,2.92406]
[1721359708177,0.03980665,3420.4,3419.9,2.92406]
[1721359708594,0.03980665,3420.4,3419.7,2.92421]
[1721359708595,2.96344665,3420.4,3419.7,2.92421]
[1721359708799,2.3595,3420.3,3419.1,2.92474]
[1721359708981,2.92398,3420.0,3419.1,2.92474]
[1721359709420,0.03969962,3419.9,3419.1,2.92474]
[1721359709776,0.03969962,3419.9,3419.0,2.92483]
[1721359709982,0.03969962,3419.9,3418.9,2.92491]
[1721359709983,2.3595,3419.8,3418.9,2.92491]
[1721359710318,2.92433,3419.6,3418.9,2.92491]
[1721359710604,0.86425651,3419.5,3418.9,2.92491]
[1721359710905,0.86425651,3419.5,3418.7,2.92507]
[1721359710906,2.92456,3419.4,3418.7,2.92507]
[1721359711065,0.03945284,3419.3,3418.7,2.92507]
[1721359711922,0.03945284,3419.3,3418.8,2.92498]
[1721359715333,0.03945284,3419.3,3418.5,2.92524]
[1721359715334,2.92466,3419.2,3418.5,2.92524]
[1721359715555,5.3989519,3419.1,3418.3,2.92536]
[1721359716311,2.92483,3419.0,3418.3,2.92536]
[1721359716513,0.0391763,3418.9,3418.3,2.92536]
[1721359716708,0.0391763,3418.9,3418.4,2.92533]
[1721359719136,2.9251,3418.7,3418.0,2.92567]
[1721359719943,0.03791345,3418.6,3418.0,2.92567]
[1721359720147,2.96310345,3418.6,3417.9,2.92574]
[1721359720850,2.96310345,3418.6,3417.8,5.92585]
[1721359720851,0.03791345,3418.6,3418.0,2.92568]
[1721359721208,2.92505,3418.8,3418.0,2.92568]
[1721359721431,0.03685983,3418.5,3418.0,2.92568]
[1721359721635,2.92505,3418.8,3418.0,2.92568]
[1721359721844,0.03684819,3418.4,3418.0,2.92568]
[1721359722015,2.92505,3418.8,3418.0,2.92568]
[1721359722340,5.35976,3419.1,3418.4,2.92528]
[1721359722639,0.03692105,3419.0,3418.6,2.9251]
[1721359725157,0.03692105,3419.0,3418.8,2.92498]
[1721359725450,0.03692105,3419.0,3418.8,2.92494]
[1721359725631,0.03692105,3419.0,3418.9,2.92491]
[1721359725961,2.3415,3419.5,3419.0,2.92481]
[1721359727649,2.3415,3419.5,3418.8,2.92498]
[1721359727830,5.26597,3419.5,3418.8,2.92498]
[1721359728434,6.08499,3419.5,3418.8,2.92498]
[1721359729913,5.26597,3419.5,3418.8,2.92498]
[1721359730937,2.92457,3419.4,3418.7,2.92508]
[1721359732554,2.92458,3419.3,3418.7,2.92508]
[1721359732920,2.92458,3419.3,3418.5,2.92525]
[1721359733114,2.92466,3419.2,3418.5,2.92525]
[1721359733520,2.92466,3419.2,3418.6,2.92514]
[1721359734357,2.92466,3419.2,3418.3,2.9254]
[1721359734562,2.92466,3419.2,3418.4,3.0]
[1721359734745,0.03578337,3419.1,3418.4,5.92534]
[1721359734951,0.03578337,3419.1,3418.5,2.92521]
[1721359735160,2.92449,3419.4,3418.5,2.92521]
[1721359735321,0.03577174,3419.0,3418.5,2.92521]
[1721359735662,0.03577174,3419.0,3418.8,2.925]
[1721359735855,2.92449,3419.4,3418.8,2.925]
[1721359736064,0.03576011,3418.9,3418.8,2.925]
[1721359736519,2.92449,3419.4,3418.8,2.925]
[1721359736723,0.03580662,3419.3,3418.8,2.925]
[1721359738357,2.96038662,3419.3,3418.6,2.92517]
[1721359738561,2.92468,3419.2,3418.6,2.92517]
[1721359738860,2.45468492,3419.1,3418.4,5.92528]
[1721359739731,2.45468492,3419.1,3418.6,2.92511]
[1721359741660,2.45468492,3419.1,3418.4,5.92528]
[1721359741661,5.37942492,3419.1,3418.4,5.92528]
[1721359741873,5.37942492,3419.1,3418.5,2.92525]
[1721359743336,2.45468492,3419.1,3418.5,2.92525]
[1721359743541,2.45468492,3419.1,3418.7,2.92507]
[1721359743985,5.37942492,3419.1,3418.5,2.92519]
[1721359749486,2.45468492,3419.1,3418.6,2.92517]
[1721359750492,0.03578492,3419.1,3418.8,2.92498]
[1721359750815,5.32039,3419.4,3418.8,2.92498]
[1721359751101,0.03570849,3419.0,3418.6,2.92517]
[1721359751408,0.03570308,3418.9,3418.6,2.92517]
[1721359751575,2.43160308,3418.9,3418.6,2.92517]
[1721359751775,2.3959,3418.9,3418.6,2.92517]
[1721359751957,0.03569145,3418.8,3418.6,2.92517]
[1721359754226,0.03569145,3418.8,3418.7,2.92508]
[1721359754541,2.3033,3419.2,3418.7,2.92508]
[1721359754723,0.03572721,3419.1,3418.7,2.92508]
[1721359756843,0.03572721,3419.1,3418.9,2.92485]
[1721359757140,2.3033,3419.5,3419.0,2.92483]
[1721359757434,0.03576918,3419.4,3419.0,2.92483]
[1721359759241,0.03576918,3419.4,3418.7,2.92505]
[1721359759447,0.03576918,3419.4,3418.5,2.92524]
[1721359759739,2.3367,3419.1,3418.5,2.92524]
[1721359759938,0.03575061,3419.0,3418.5,2.92524]
[1721359762546,0.03575061,3419.0,3418.6,2.92516]
[1721359765433,0.56546167,3419.0,3418.4,5.92532]
[1721359766233,0.03575061,3419.0,3418.4,5.92532]
[1721359768171,0.03575061,3419.0,3418.5,2.92525]
[1721359773075,2.92492,3418.9,3418.3,2.92542]
[1721359773288,2.96045952,3418.9,3418.3,2.92542]
[1721359774493,4.07190072,3418.9,3418.3,2.92542]
[1721359775450,2.925,3418.8,3418.1,3.97457]
[1721359775657,2.925,3418.8,3418.2,2.9255]
[1721359775658,2.4701,3418.7,3418.2,2.9255]
[1721359775872,2.50556966,3418.7,3418.2,2.9255]
[1721359776279,3.55456966,3418.7,3417.9,2.92574]
[1721359776583,0.75910109,3418.6,3417.9,2.92574]
[1721359776788,3.68432109,3418.6,3417.9,2.92574]
[1721359776994,3.68432109,3418.6,3417.7,3.97493]
[1721359776995,3.68432109,3418.6,3418.0,2.92568]
[1721359777226,0.0353035,3418.5,3418.0,2.92568]
[1721359778004,0.0353035,3418.5,3418.1,1.049]
[1721359778167,0.0353035,3418.5,3418.2,2.9255]
[1721359778367,2.4701,3418.7,3418.2,2.9255]
[1721359778603,0.03526848,3418.6,3418.2,2.9255]
[1721359780290,0.03526848,3418.6,3418.3,3.97441]
[1721359780467,5.29834,3419.0,3418.1,3.97453]
[1721359780667,0.03529101,3418.5,3418.1,2.92553]
[1721359780903,1.049,3418.9,3418.1,2.92553]
[1721359781083,0.03528651,3418.4,3418.1,2.92553]
[1721359781315,2.92512,3418.7,3418.0,2.92566]
[1721359781613,2.3735,3418.6,3418.0,2.9256]
[1721359781776,2.40880978,3418.6,3418.1,2.92559]
[1721359785110,0.03530978,3418.6,3418.2,2.9255]
[1721359785479,2.925,3418.8,3418.2,2.9255]
[1721359786171,0.03529946,3418.7,3418.2,2.9255]
[1721359787111,0.03529946,3418.7,3418.3,1.049]
[1721359787316,0.03529946,3418.7,3418.6,2.92517]
[1721359787482,2.3684,3419.2,3418.6,2.92517]
[1721359787680,0.03411293,3418.7,3418.6,2.92517]
[1721359788004,0.0341169,3418.7,3418.6,2.92517]
[1721359788186,2.3684,3419.2,3418.6,2.92517]
[1721359788407,0.03418675,3419.1,3418.7,2.92504]
[1721359789219,0.03418675,3419.1,3418.8,2.92497]
[1721359791190,0.03418675,3419.1,3418.9,2.92487]
[1721359795704,0.03418675,3419.1,3418.7,2.92502]
[1721359795915,0.03418675,3419.1,3418.9,2.92491]
[1721359800206,0.03418675,3419.1,3418.8,2.92498]
[1721359801424,0.03418675,3419.1,3419.0,2.92483]
[1721359806706,0.03418675,3419.1,3418.8,2.92498]
[1721359807051,0.03418675,3419.1,3418.9,2.9249]
[1721359809931,0.03418675,3419.1,3418.7,2.92508]
[1721359809932,0.03418675,3419.1,3419.0,2.92483]
[1721359812534,0.03418675,3419.1,3419.0,5.84966]
[1721359813344,0.03418675,3419.1,3419.0,12.17999]
[1721359813547,0.03418675,3419.1,3419.0,18.27249699]
[1721359813722,0.03418675,3419.1,3419.0,21.19732699]
[1721359813920,0.03418675,3419.1,3419.0,21.80776389]
[1721359814376,0.03418675,3419.1,3419.0,20.75876389]
[1721359814525,0.03418675,3419.1,3419.0,17.22349699]
[1721359814724,0.03418675,3419.1,3419.0,11.20616]
[1721359817361,2.3525,3420.0,3419.3,2.92448]
[1721359817565,2.87548446,3420.0,3419.4,2.92446]
[1721359817728,0.02661655,3419.9,3419.4,2.92446]
[1721359819527,0.02661655,3419.9,3419.5,2.92438]
[1721359822172,0.02661655,3419.9,3419.6,2.9243]
[1721359823033,0.02661655,3419.9,3419.8,2.92414]
[1721359823629,0.02648877,3419.9,3419.8,2.92414]
[1721359823836,2.2744,3420.3,3419.8,2.92414]
[1721359824069,0.02647638,3419.9,3419.8,2.92414]
[1721359824265,2.2744,3420.3,3419.8,2.92414]
[1721359824475,2.2744,3420.3,3419.9,2.92406]
[1721359825449,2.2744,3420.3,3420.0,2.92396]
[1721359826640,2.2744,3420.3,3419.8,2.92409]
[1721359826979,0.22744,3420.2,3419.8,2.92409]
[1721359827177,0.22744,3420.2,3419.9,2.92404]
[1721359828178,0.22744,3420.2,3420.0,2.92396]
[1721359830286,0.22744,3420.2,3419.8,2.92414]
[1721359830583,0.22744,3420.2,3419.6,2.92429]
[1721359830584,0.22744,3420.2,3419.9,2.92405]
[1721359831586,2.2564,3420.5,3420.3,2.92365]
[1721359831743,2.2564,3420.5,3420.4,2.92363]
[1721359832653,2.28274794,3420.5,3420.4,2.92363]
[1721359834268,3.33074794,3420.5,3420.4,2.92363]
[1721359835146,0.02634794,3420.5,3420.4,5.84726]
[1721359835492,2.3668,3421.0,3420.9,2.9232]
[1721359835776,2.4164,3421.3,3420.9,2.9232]
[1721359835986,0.34644,3421.2,3421.0,2.92311]
[1721359836685,0.34644,3421.2,3421.1,2.92303]
[1721359836980,2.92237,3421.9,3421.3,2.92286]
[1721359836981,3.3356,3421.6,3421.3,2.92286]
[1721359837144,2.92237,3421.9,3420.5,3.9715]
[1721359837145,1.048,3422.1,3421.7,2.92252]
[1721359837364,0.33356,3422.0,3421.5,2.92263]
[1721359837568,1.048,3421.9,3421.5,2.92263]
[1721359837801,1.048,3421.7,3420.7,7.4]
[1721359838018,1.048,3420.8,3420.5,2.9235]
[1721359838197,2.464,3421.0,3420.3,2.92369]
[1721359838198,2.464,3421.0,3420.3,2.9237]
[1721359838510,0.538712,3420.9,3420.3,2.9237]
[1721359839004,3.461932,3420.9,3420.1,2.92388]
[1721359839385,2.9233,3420.8,3420.1,2.92388]
[1721359840128,0.538712,3420.9,3420.2,2.92379]
[1721359840893,3.461932,3420.9,3420.2,2.92379]
[1721359841095,0.8849052,3420.8,3420.2,2.92379]
[1721359841385,0.8849052,3420.8,3420.3,2.9237]
[1721359841912,0.538712,3420.9,3420.4,2.92363]
[1721359842632,2.464,3421.0,3420.4,2.92363]
[1721359843211,2.464,3421.0,3420.5,2.92353]
[1721359843408,5.21509,3421.4,3420.7,2.92335]
[1721359843605,5.21509,3421.4,3420.9,2.9232]
[1721359843606,2.2923,3421.4,3420.9,2.9232]
[1721359843906,3.113782,3421.4,3420.9,2.9232]
[1721359844407,3.113782,3421.4,3421.1,2.92303]
[1721359845434,2.2923,3421.4,3421.1,2.92303]
[1721359845596,5.482,3421.8,3421.1,2.92303]
[1721359846096,5.482,3421.8,3420.7,2.92336]
[1721359846291,2.92282,3421.4,3420.7,2.92336]
[1721359848329,2.92282,3421.4,3420.8,2.92327]
[1721359848635,0.584549,3421.3,3420.8,2.92327]
[1721359848929,2.92267,3421.6,3420.8,2.92327]
[1721359849533,2.92267,3421.6,3420.9,2.92319]
[1721359851096,2.92267,3421.6,3421.0,2.92311]
[1721359855955,5.17649,3421.5,3420.8,2.92327]
[1721359856160,0.517649,3421.4,3420.8,2.92327]
[1721359857245,3.440439,3421.4,3420.8,2.92327]
[1721359858969,2.2538,3421.3,3420.3,7.4]
[1721359859273,2.2538,3421.3,3420.7,2.92335]
[1721359859468,2.2538,3421.3,3420.6,2.92345]
[1721359859469,2.2538,3421.3,3420.8,2.92329]
[1721359859662,3.1154839,3421.3,3420.8,2.92329]
[1721359859969,0.517649,3421.4,3420.8,2.92329]
[1721359860372,0.517649,3421.4,3421.0,2.92311]
[1721359861948,0.517649,3421.4,3420.6,2.92344]
[1721359862152,2.2538,3421.6,3420.6,2.92344]
[1721359862537,2.92283,3421.4,3420.7,2.92337]
[1721359863078,2.92304,3421.1,3420.4,10.3236]
[1721359863371,2.92304,3421.1,3420.5,2.92354]
[1721359863588,5.17655,3421.5,3420.7,2.92337]
[1721359863777,0.809921,3421.4,3420.7,2.92337]
[1721359864482,5.17655,3421.5,3420.9,2.92319]
[1721359864483,2.2538,3421.5,3420.9,2.92319]
[1721359865600,5.17651,3421.5,3420.9,2.92319]
[1721359866896,2.2538,3421.5,3421.0,2.92311]
[1721359867428,5.1765,3421.5,3420.8,2.92328]
[1721359867592,5.69415,3421.5,3420.8,2.92328]
[1721359867977,2.77145,3421.5,3420.6,2.92345]
[1721359868490,2.92286,3421.3,3420.6,2.92345]
[1721359868916,2.92286,3421.3,3420.7,2.92337]
[1721359869416,2.92283,3421.4,3420.7,2.92337]
[1721359869616,2.92287,3421.3,3420.7,2.92337]
[1721359870412,5.69414,3421.5,3420.7,2.92337]
[1721359871023,5.69414,3421.5,3420.8,2.92328]
[1721359871695,2.92254,3421.7,3421.0,2.92311]
[1721359872096,2.2545,3421.8,3421.0,2.92311]
[1721359872097,2.92261,3421.6,3421.0,2.92311]
[1721359875707,1.83880308,3421.9,3421.1,2.486]
[1721359875904,0.30577773,3423.5,3422.0,2.9222]
[1721359875905,1.83880308,3422.6,3422.0,2.9222]
[1721359876127,2.92168,3422.7,3422.0,2.9222]
[1721359876309,1.05063464,3422.6,3422.0,2.9222]
[1721359876513,1.05063464,3422.6,3422.1,2.92218]
[1721359878022,7.1476203,3423.1,3421.8,2.486]
[1721359878343,5.30955,3423.1,3422.3,2.92193]
[1721359878712,2.9215,3422.9,3422.3,2.92193]
[1721359879148,2.9215,3422.9,3422.1,2.92212]
[1721359879637,2.9215,3422.9,3422.3,2.922]
[1721359882364,5.30955,3423.1,3422.3,2.922]
[1721359882564,2.92141,3423.0,3422.3,2.922]
[1721359882732,2.92141,3423.0,3421.6,5.92256]
[1721359882733,2.921,3423.5,3422.4,5.29922]
[1721359882934,2.921,3423.5,3422.8,2.92158]
[1721359882935,0.84026,3423.4,3422.8,2.92158]
[1721359883370,2.92085,3423.7,3422.9,2.92149]
[1721359883934,2.92085,3423.7,3423.0,2.9214]
[1721359884243,2.92057,3424.0,3423.1,2.92132]
[1721359884244,2.92068,3423.9,3423.1,2.92132]
[1721359884453,2.92068,3423.9,3423.2,2.92123]
[1721359884932,2.4816,3424.1,3422.9,2.92149]
[1721359884933,2.92074,3423.8,3423.0,2.92137]
[1721359885127,0.292074,3423.7,3423.0,2.92137]
[1721359885355,0.292074,3423.7,3423.1,2.9213]
[1721359887462,0.292074,3423.7,3422.9,2.92149]
[1721359887659,2.92064,3423.9,3422.9,2.92149]
[1721359887867,2.9209,3423.6,3422.9,2.92149]
[1721359888029,2.92035,3424.3,3421.8,6.00535]
[1721359888030,2.92164,3422.8,3422.0,2.92225]
[1721359888489,2.92164,3422.8,3422.1,2.92217]
[1721359891058,2.92164,3422.8,3421.9,2.92234]
[1721359891246,2.92164,3422.8,3422.2,2.92209]
[1721359891639,2.92164,3422.8,3422.0,2.92222]
[1721359892068,2.92164,3422.8,3421.9,2.92234]
[1721359892546,2.92142,3423.0,3422.0,2.92226]
[1721359892748,2.92125,3423.2,3422.1,2.92217]
[1721359892952,2.92125,3423.2,3422.4,2.92191]
[1721359893186,3.505483,3423.2,3422.4,2.92191]
[1721359893386,2.92125,3423.2,3422.5,2.92182]
[1721359895051,5.4767,3423.7,3422.6,2.92175]
[1721359895052,2.92119,3423.3,3422.6,2.92175]
[1721359895383,2.92133,3423.1,3422.4,2.92191]
[1721359895678,2.515,3423.5,3422.3,2.922]
[1721359895679,2.92143,3423.0,3422.3,2.922]
[1721359896656,2.9215,3422.9,3422.3,2.922]
[1721359896985,2.92176,3422.6,3422.0,7.4]
[1721359897288,2.92176,3422.6,3422.0,10.32226]
[1721359897706,2.515,3423.5,3422.2,2.92209]
[1721359897707,2.92134,3423.1,3422.2,2.92209]
[1721359898293,2.92156,3422.9,3422.2,2.92209]
[1721359901256,2.92091,3423.6,3422.9,2.92149]
[1721359901592,3.15617,3423.6,3422.9,2.92149]
[1721359902293,0.23526,3423.6,3423.0,2.92139]
[1721359902517,2.9208,3423.8,3423.0,2.92139]
[1721359902719,2.9208,3423.8,3423.1,2.92131]
[1721359902930,2.92034,3424.3,3423.4,2.92106]
[1721359902931,2.9204,3424.2,3423.4,2.92106]
[1721359903096,2.9204,3424.2,3423.5,2.92095]
[1721359903296,3.37827487,3424.4,3423.6,2.92088]
[1721359903297,2.92023,3424.4,3423.6,2.92088]
[1721359903606,3.504339,3424.3,3423.6,2.92088]
[1721359905219,2.92039,3424.2,3423.4,2.92102]
[1721359905838,0.584029,3424.3,3423.6,2.92084]
[1721359905988,2.92022,3424.4,3423.6,2.92084]
[1721359906321,2.92022,3424.4,3423.7,2.9208]
[1721359913058,2.92049,3424.1,3423.5,2.481]
[1721359913349,2.92049,3424.1,3423.2,7.4]
[1721359914756,2.92049,3424.1,3423.2,10.32122]
[1721359915118,2.92049,3424.1,3423.3,2.92113]
[1721359915317,2.9203,3424.3,3423.4,2.92106]
[1721359915318,2.92056,3424.0,3423.4,2.92106]
[1721359916654,2.92062,3424.0,3423.4,2.92106]
[1721359916861,2.92044,3424.2,3423.5,2.92097]
[1721359917952,2.92044,3424.2,3423.6,2.92089]
[1721359918650,2.92048,3424.1,3423.4,2.92101]
[1721359919445,2.92074,3423.8,3423.2,7.4]
[1721359921547,2.92082,3423.7,3423.2,7.4]
[1721359921729,2.92122,3423.3,3422.8,7.4]
[1721359923547,2.92108,3423.4,3422.8,7.4]
[1721359923727,2.92133,3423.1,3422.8,7.4]
[1721359924156,2.92087,3423.7,3422.8,7.4]
[1721359924339,2.92098,3423.6,3422.9,2.92147]